bitfinex/quotes_BTCUSD_20250713
["timestamp","ask_amount","ask_price","bid_price","bid_amount"]
[1752369573051,0.8698,117200.0,117190.0,0.10224]
[1752369573251,1.84472571,117200.0,117190.0,0.10224]
[1752369573452,0.621,117190.0,117180.0,0.10473806]
[1752369573689,1.20035993,117190.0,117180.0,0.10473806]
[1752369574310,1.20035993,117190.0,117180.0,0.17069806]
[1752369574487,1.22594593,117190.0,117180.0,0.17069806]
[1752369574727,1.31137586,117190.0,117180.0,0.17069806]
[1752369575280,0.97594593,117190.0,117180.0,0.17069806]
[1752369575658,0.97794593,117190.0,117180.0,0.17069806]
[1752369575857,0.97894593,117190.0,117180.0,0.17069806]
[1752369576465,1.03008593,117190.0,117180.0,0.17069806]
[1752369579194,0.78563093,117190.0,117180.0,0.17069806]
[1752369580242,1.03008593,117190.0,117180.0,0.17069806]
[1752369582354,0.78563093,117190.0,117180.0,0.17069806]
[1752369584095,1.03008593,117190.0,117180.0,0.17069806]
[1752369585451,0.98449093,117190.0,117180.0,0.17069806]
[1752369585669,0.94847093,117190.0,117180.0,0.17069806]
[1752369585876,0.613041,117190.0,117180.0,0.19899806]
[1752369586453,0.664181,117190.0,117180.0,0.19899806]
[1752369586625,0.611041,117190.0,117180.0,0.19899806]
[1752369587025,0.612041,117190.0,117180.0,0.19899806]
[1752369587625,0.611041,117190.0,117180.0,0.19899806]
[1752369588951,0.611041,117190.0,117180.0,0.18669806]
[1752369592168,0.611041,117190.0,117180.0,0.17069806]
[1752369593007,0.73320018,117190.0,117180.0,0.17069806]
[1752369594436,0.73320018,117190.0,117180.0,0.18659806]
[1752369595371,0.73320018,117190.0,117180.0,0.17069806]
[1752369598662,0.73633018,117190.0,117180.0,0.17069806]
[1752369602194,0.75143018,117190.0,117180.0,0.17069806]
[1752369602707,0.20989309,117190.0,117180.0,0.18299806]
[1752369602910,0.18430709,117190.0,117180.0,0.19909806]
[1752369603555,0.52330709,117190.0,117180.0,0.19909806]
[1752369604962,0.52330709,117190.0,117180.0,0.20009806]
[1752369605872,0.52025442,117190.0,117180.0,0.20009806]
[1752369606072,0.70356151,117190.0,117180.0,0.20009806]
[1752369608958,0.70356151,117190.0,117180.0,0.18779806]
[1752369609892,0.34,117190.0,117180.0,0.18779806]
[1752369610102,0.52330709,117190.0,117180.0,0.18779806]
[1752369613449,0.52330709,117190.0,117180.0,0.17169806]
[1752369615329,0.70661418,117190.0,117180.0,0.17169806]
[1752369619651,0.70955418,117190.0,117180.0,0.17169806]
[1752369622022,0.72485418,117190.0,117180.0,0.17169806]
[1752369625459,0.35824,117190.0,117180.0,0.17169806]
[1752369625662,0.72485418,117190.0,117180.0,0.17169806]
[1752369626615,0.72681418,117190.0,117180.0,0.17169806]
[1752369631162,0.74241418,117190.0,117180.0,0.17169806]
[1752369635653,0.72681418,117190.0,117180.0,0.17169806]
[1752369642057,0.02863,117200.0,117180.0,0.19949806]
[1752369642285,0.00305,117210.0,117190.0,0.0278]
[1752369642498,0.03395,117220.0,117200.0,0.06564]
[1752369642667,0.18330709,117210.0,117200.0,0.09344]
[1752369643754,0.18330709,117210.0,117200.0,0.08114]
[1752369644913,0.18330709,117210.0,117200.0,0.09314]
[1752369645336,0.18330709,117210.0,117200.0,0.08084]
[1752369646413,0.18430709,117210.0,117200.0,0.08084]
[1752369648200,0.001,117210.0,117200.0,0.09314]
[1752369648404,0.18530709,117210.0,117200.0,0.09314]
[1752369652065,0.18530709,117210.0,117200.0,0.06564]
[1752369654825,0.20415709,117210.0,117200.0,0.06564]
[1752369655825,0.22240709,117210.0,117200.0,0.06564]
[1752369656826,0.38991418,117210.0,117200.0,0.06556]
[1752369657048,0.0163,117200.0,117180.0,0.10473806]
[1752369657254,0.38791418,117190.0,117180.0,0.19016799]
[1752369657456,0.22120709,117190.0,117180.0,0.25576799]
[1752369658370,0.22120709,117190.0,117180.0,0.25676799]
[1752369658578,0.22120709,117190.0,117180.0,0.25876799]
[1752369658758,0.22120709,117190.0,117180.0,0.25776799]
[1752369659641,0.22120709,117190.0,117180.0,0.25876799]
[1752369660368,0.40451418,117190.0,117180.0,0.25876799]
[1752369660529,0.22120709,117190.0,117180.0,0.25876799]
[1752369660908,0.28224263,117190.0,117180.0,0.25876799]
[1752369667023,0.0379,117190.0,117180.0,0.25876799]
[1752369667236,0.28224263,117190.0,117180.0,0.25876799]
[1752369667387,0.0379,117190.0,117180.0,0.25876799]
[1752369667606,0.28224263,117190.0,117180.0,0.25876799]
[1752369670982,0.0379,117190.0,117180.0,0.25876799]
[1752369671267,0.28224263,117190.0,117180.0,0.25876799]
[1752369673338,0.0379,117190.0,117180.0,0.25876799]
[1752369673549,0.28224263,117190.0,117180.0,0.25876799]
[1752369682853,0.2211365,117190.0,117180.0,0.25876799]
[1752369684538,0.0379,117190.0,117180.0,0.25876799]
[1752369684691,0.2211365,117190.0,117180.0,0.25876799]
[1752369686296,0.056376,117220.0,117190.0,0.0281]
[1752369686516,0.0136857,117230.0,117200.0,0.42784643]
[1752369686517,0.0293857,117230.0,117200.0,0.42784643]
[1752369686721,0.1832365,117220.0,117200.0,0.45390023]
[1752369686923,0.1832365,117220.0,117200.0,0.27066373]
[1752369687135,0.1832365,117220.0,117200.0,0.42784643]
[1752369687752,0.1832365,117220.0,117200.0,0.2563557]
[1752369688995,0.61998654,117230.0,117200.0,0.2563557]
[1752369689133,0.37582,117230.0,117200.0,0.2563557]
[1752369689339,0.61998654,117230.0,117200.0,0.2563557]
[1752369689543,0.61998654,117230.0,117200.0,0.2533557]
[1752369689770,0.61998654,117230.0,117200.0,0.2543557]
[1752369690231,0.61998654,117230.0,117200.0,0.2533557]
[1752369690436,0.26428654,117230.0,117200.0,0.2262557]
[1752369690635,0.26428654,117230.0,117210.0,0.0281]
[1752369690838,0.02012,117230.0,117220.0,0.21650993]
[1752369691109,0.002,117230.0,117220.0,0.21650993]
[1752369691314,0.002,117230.0,117220.0,0.25915078]
[1752369693012,0.003,117230.0,117220.0,0.26015078]
[1752369693216,0.002,117230.0,117220.0,0.26015078]
[1752369694585,0.002,117230.0,117220.0,0.24785078]
[1752369695016,0.002,117230.0,117220.0,0.23205078]
[1752369697832,0.24616654,117230.0,117220.0,0.23205078]
[1752369698288,0.26236654,117230.0,117220.0,0.23205078]
[1752369699212,0.26236654,117230.0,117220.0,0.2576155]
[1752369700225,0.0182,117230.0,117220.0,0.2576155]
[1752369700464,0.26236654,117230.0,117220.0,0.2576155]
[1752369701395,0.0182,117230.0,117220.0,0.2576155]
[1752369704355,0.26236654,117230.0,117220.0,0.2576155]
[1752369708599,0.26557654,117230.0,117220.0,0.2576155]
[1752369710907,0.20450199,117230.0,117220.0,0.2576155]
[1752369714237,0.22110199,117230.0,117220.0,0.2576155]
[1752369717636,0.22110199,117230.0,117220.0,0.3597755]
[1752369719824,0.20450199,117230.0,117220.0,0.3597755]
[1752369724538,0.22030199,117230.0,117220.0,0.3597755]
[1752369730318,0.03721,117230.0,117220.0,0.3597755]
[1752369730471,0.22030199,117230.0,117220.0,0.3597755]
[1752369733574,0.22231199,117230.0,117220.0,0.3597755]
[1752369737352,0.03922,117230.0,117220.0,0.3597755]
[1752369737686,0.22231199,117230.0,117220.0,0.3597755]
[1752369742603,0.40540398,117230.0,117220.0,0.11199465]
[1752369742824,0.40540398,117230.0,117220.0,0.10316]
[1752369743031,0.58849597,117230.0,117220.0,0.16864]
[1752369743146,0.40540398,117230.0,117220.0,0.16864]
[1752369748958,0.03922,117230.0,117220.0,0.16864]
[1752369749156,0.40806967,117230.0,117220.0,0.16864]
[1752369749399,0.40540398,117230.0,117220.0,0.16864]
[1752369768175,0.03922,117230.0,117220.0,0.16864]
[1752369768389,0.40540398,117230.0,117220.0,0.16864]
[1752369768601,0.20129199,117230.0,117220.0,0.25406993]
[1752369768800,0.002,117230.0,117220.0,0.45236192]
[1752369769009,0.002,117230.0,117220.0,0.46466192]
[1752369769214,0.18509199,117230.0,117220.0,0.28156993]
[1752369773607,0.18509199,117230.0,117220.0,0.25406993]
[1752369779737,0.20089199,117230.0,117220.0,0.25406993]
[1752369779915,0.0178,117230.0,117220.0,0.25406993]
[1752369780115,0.20089199,117230.0,117220.0,0.25406993]
[1752369785327,0.18509199,117230.0,117220.0,0.25406993]
[1752369788216,0.20109199,117230.0,117220.0,0.25406993]
[1752369791078,0.20433199,117230.0,117220.0,0.25406993]
[1752369794706,0.018,117230.0,117220.0,0.25406993]
[1752369794903,0.18509199,117230.0,117220.0,0.25406993]
[1752369795896,0.20139199,117230.0,117220.0,0.25406993]
[1752369797688,0.20463199,117230.0,117220.0,0.25406993]
[1752369801678,0.22123199,117230.0,117220.0,0.25406993]
[1752369806367,0.22337199,117230.0,117220.0,0.25406993]
[1752369807616,0.04028,117230.0,117220.0,0.25406993]
[1752369807826,0.22123199,117230.0,117220.0,0.25406993]
[1752369809370,0.22337199,117230.0,117220.0,0.25406993]
[1752369815850,0.22337199,117230.0,117220.0,0.27936196]
[1752369816691,0.22123199,117230.0,117220.0,0.27936196]
[1752369817200,0.03814,117230.0,117220.0,0.27936196]
[1752369817401,0.22123199,117230.0,117220.0,0.27936196]
[1752369819185,0.002,117230.0,117220.0,0.4934948]
[1752369819385,0.002,117230.0,117220.0,0.4769948]
[1752369819547,0.002,117230.0,117220.0,0.29390281]
[1752369819752,0.002,117230.0,117220.0,0.4769948]
[1752369819964,0.002,117230.0,117220.0,0.4759948]
[1752369820266,0.002,117230.0,117220.0,0.4789948]
[1752369821402,0.002,117230.0,117220.0,0.29590281]
[1752369822805,0.18509199,117230.0,117220.0,0.29590281]
[1752369823270,0.002,117230.0,117220.0,0.29590281]
[1752369824956,0.0172,117230.0,117220.0,0.29590281]
[1752369825870,0.20029199,117230.0,117220.0,0.29590281]
[1752369829820,0.0172,117230.0,117220.0,0.29590281]
[1752369830040,0.20029199,117230.0,117220.0,0.29590281]
[1752369830842,0.0172,117230.0,117220.0,0.29590281]
[1752369831122,0.20029199,117230.0,117220.0,0.29590281]
[1752369831321,0.002,117230.0,117220.0,0.4789948]
[1752369833292,0.22062111,117250.0,117230.0,0.19763284]
[1752369833532,0.22077044,117250.0,117240.0,0.16525078]
[1752369834384,0.22284044,117250.0,117240.0,0.16525078]
[1752369835031,0.22284044,117250.0,117240.0,0.16725078]
[1752369835448,0.22284044,117250.0,117240.0,0.17590906]
[1752369836122,0.22284044,117250.0,117240.0,0.17690906]
[1752369837009,0.22284044,117250.0,117240.0,0.27906906]
[1752369837222,0.22284044,117250.0,117240.0,0.27041078]
[1752369843335,0.22284044,117250.0,117240.0,0.20513078]
[1752369843547,0.40593243,117250.0,117240.0,0.25582993]
[1752369845785,0.40593243,117250.0,117240.0,0.19058993]
[1752369846013,0.40593243,117250.0,117240.0,0.25582993]
[1752369861162,0.03974845,117250.0,117240.0,0.25582993]
[1752369861371,0.40859767,117250.0,117240.0,0.25582993]
[1752369861569,0.40593243,117250.0,117240.0,0.25582993]
[1752369876961,0.40593243,117250.0,117240.0,0.10516]
[1752369877168,0.92902442,117250.0,117240.0,0.17032]
[1752369877317,0.74593243,117250.0,117240.0,0.10516]
[1752369877524,0.74593243,117250.0,117240.0,0.17032]
[1752369897142,0.92902442,117250.0,117240.0,0.10516]
[1752369897600,1.01445435,117250.0,117240.0,0.17028]
[1752369897827,0.95459342,117250.0,117240.0,0.17028]
[1752369899231,0.95459342,117250.0,117240.0,0.16928]
[1752369900732,0.95459342,117250.0,117240.0,0.16728]
[1752369901760,0.95559342,117250.0,117240.0,0.16728]
[1752369902195,0.95759342,117250.0,117240.0,0.16728]
[1752369904480,0.96701988,117250.0,117240.0,0.16728]
[1752369906344,0.94145088,117250.0,117240.0,0.16728]
[1752369913394,1.02688081,117250.0,117240.0,0.16728]
[1752369913595,1.01745435,117250.0,117240.0,0.16728]
[1752369916249,1.04302535,117250.0,117240.0,0.16728]
[1752369917789,1.06800975,117250.0,117240.0,0.16728]
[1752369924026,1.11913975,117250.0,117240.0,0.16728]
[1752369924398,1.06800975,117250.0,117240.0,0.16728]
[1752369926020,0.85993336,117250.0,117240.0,0.16728]
[1752369926248,1.08436236,117250.0,117240.0,0.16728]
[1752369926416,0.83436236,117250.0,117240.0,0.16728]
[1752369926865,0.46817838,117250.0,117240.0,0.16728]
[1752369927071,0.83436236,117250.0,117240.0,0.16728]
[1752369928527,0.74893243,117250.0,117240.0,0.16728]
[1752369928733,0.52797044,117250.0,117240.0,0.16728]
[1752369929166,0.71106243,117250.0,117240.0,0.16728]
[1752369929376,0.18797044,117250.0,117240.0,0.16728]
[1752369929621,0.18797044,117250.0,117240.0,0.18378]
[1752369929834,0.52797044,117250.0,117240.0,0.18378]
[1752369930159,0.71106243,117250.0,117240.0,0.18378]
[1752369930926,0.52797044,117250.0,117240.0,0.18378]
[1752369931128,0.71106243,117250.0,117240.0,0.18378]
[1752369931550,0.71106243,117250.0,117240.0,0.16728]
[1752369933922,0.52797044,117250.0,117240.0,0.16728]
[1752369934126,0.52797044,117250.0,117240.0,0.19518]
[1752369940697,0.52797044,117250.0,117240.0,0.18288]
[1752369941803,0.52797044,117250.0,117240.0,0.16728]
[1752369944254,0.53116044,117250.0,117240.0,0.16728]
[1752369945240,0.52797044,117250.0,117240.0,0.16728]
[1752369945984,0.53116044,117250.0,117240.0,0.16728]
[1752369947129,0.54726044,117250.0,117240.0,0.16728]
[1752369949062,0.53116044,117250.0,117240.0,0.16728]
[1752369950212,0.54726044,117250.0,117240.0,0.16728]
[1752369954769,0.54933044,117250.0,117240.0,0.16728]
[1752369958765,0.56513044,117250.0,117240.0,0.16728]
[1752369959173,0.74822243,117250.0,117240.0,0.16728]
[1752369971967,0.38203845,117250.0,117240.0,0.16728]
[1752369972112,0.74822243,117250.0,117240.0,0.16728]
[1752369973272,0.56513044,117250.0,117240.0,0.16728]
[1752369978899,0.74822243,117250.0,117240.0,0.16728]
[1752369979121,0.56513044,117250.0,117240.0,0.16728]
[1752369980657,0.52797044,117250.0,117240.0,0.16728]
[1752369981851,0.53112044,117250.0,117240.0,0.16728]
[1752369982070,0.54742044,117250.0,117240.0,0.16728]
[1752369984520,0.36432845,117250.0,117240.0,0.16728]
[1752369984741,0.54742044,117250.0,117240.0,0.16728]
[1752369985019,0.36432845,117250.0,117240.0,0.16728]
[1752369985227,0.54742044,117250.0,117240.0,0.16728]
[1752369988525,0.54947044,117250.0,117240.0,0.16728]
[1752369991423,0.36637845,117250.0,117240.0,0.16728]
[1752369991631,0.54947044,117250.0,117240.0,0.16728]
[1752369992489,0.56597044,117250.0,117240.0,0.16728]
[1752369994436,0.38287845,117250.0,117240.0,0.16728]
[1752369994812,0.56597044,117250.0,117240.0,0.16728]
[1752370001821,0.38287845,117250.0,117240.0,0.16728]
[1752370002025,0.54947044,117250.0,117240.0,0.16728]
[1752370002457,0.52797044,117250.0,117240.0,0.25270993]
[1752370003926,0.53097044,117250.0,117240.0,0.25270993]
[1752370004300,0.54747044,117250.0,117240.0,0.25270993]
[1752370008920,0.54949044,117250.0,117240.0,0.25270993]
[1752370010476,0.54747044,117250.0,117240.0,0.25270993]
[1752370010681,0.53097044,117250.0,117240.0,0.25270993]
[1752370011061,0.54617044,117250.0,117240.0,0.25270993]
[1752370012557,0.54819044,117250.0,117240.0,0.25270993]
[1752370012797,0.56339044,117250.0,117240.0,0.25270993]
[1752370016098,0.02007845,117250.0,117240.0,0.25270993]
[1752370016309,0.00487845,117250.0,117240.0,0.46440192]
[1752370016726,0.00487845,117250.0,117240.0,0.47894277]
[1752370017148,0.00387845,117250.0,117240.0,0.47894277]
[1752370017518,0.00187845,117250.0,117240.0,0.47894277]
[1752370017930,0.00187845,117250.0,117240.0,0.48094277]
[1752370018089,0.00187845,117250.0,117240.0,0.29785078]
[1752370018458,0.00187845,117250.0,117240.0,0.48094277]
[1752370018659,0.00187845,117250.0,117240.0,0.29785078]
[1752370019086,0.00187845,117250.0,117240.0,0.48955179]
[1752370026599,0.00187845,117250.0,117240.0,0.47725179]
[1752370027207,0.00187845,117250.0,117240.0,0.48955179]
[1752370027632,0.00187845,117250.0,117240.0,0.3064598]
[1752370027885,0.00187845,117250.0,117240.0,0.48955179]
[1752370032610,0.00187845,117250.0,117240.0,0.3064598]
[1752370032812,0.00187845,117250.0,117240.0,0.48955179]
[1752370033356,0.00187845,117250.0,117240.0,0.67264378]
[1752370033558,0.00187845,117250.0,117240.0,0.72264378]
[1752370033745,0.22003199,117270.0,117250.0,0.21263284]
[1752370033944,0.22003199,117270.0,117260.0,0.21518993]
[1752370034363,0.03694,117270.0,117260.0,0.21518993]
[1752370035667,0.03794,117270.0,117260.0,0.21518993]
[1752370036109,0.03994,117270.0,117260.0,0.21518993]
[1752370036929,0.22303199,117270.0,117260.0,0.21518993]
[1752370038240,0.22203199,117270.0,117260.0,0.21518993]
[1752370039063,0.03894,117270.0,117260.0,0.21518993]
[1752370039291,0.22203199,117270.0,117260.0,0.21518993]
[1752370040153,0.03894,117270.0,117260.0,0.21518993]
[1752370041834,0.0206,117270.0,117260.0,0.22973078]
[1752370042461,0.002,117270.0,117260.0,0.22973078]
[1752370046896,0.0177,117270.0,117260.0,0.22973078]
[1752370049419,0.03704,117270.0,117260.0,0.22973078]
[1752370051807,0.22013199,117270.0,117260.0,0.22973078]
[1752370051989,0.22208199,117270.0,117260.0,0.22973078]
[1752370052444,0.03899,117270.0,117260.0,0.22973078]
[1752370052655,0.22208199,117270.0,117260.0,0.22973078]
[1752370053327,0.22208199,117270.0,117260.0,0.33185078]
[1752370054997,0.03899,117270.0,117260.0,0.33185078]
[1752370055207,0.22208199,117270.0,117260.0,0.33185078]
[1752370065268,0.03899,117270.0,117260.0,0.33185078]
[1752370065501,0.22208199,117270.0,117260.0,0.33185078]
[1752370081993,0.03899,117270.0,117260.0,0.33185078]
[1752370082202,0.22208199,117270.0,117260.0,0.33185078]
[1752370082423,0.22208199,117270.0,117260.0,0.31730993]
[1752370082635,0.58826597,117270.0,117260.0,0.18754993]
[1752370082848,0.58826597,117270.0,117260.0,0.16696]
[1752370083064,1.04986652,117270.0,117260.0,0.10212]
[1752370083496,1.04986652,117270.0,117220.0,0.02763601]
[1752370083715,0.21539199,117240.0,117230.0,0.08542993]
[1752370083925,0.21748199,117240.0,117230.0,0.08542993]
[1752370084138,0.22070199,117240.0,117230.0,0.15026993]
[1752370084616,0.22070199,117240.0,117230.0,0.08542993]
[1752370084788,0.22070199,117240.0,117230.0,0.15026993]
[1752370085005,0.40379398,117240.0,117230.0,0.15026993]
[1752370085157,0.40379398,117240.0,117230.0,0.25238993]
[1752370085561,0.40379398,117240.0,117230.0,0.25438993]
[1752370085769,0.40379398,117240.0,117230.0,0.25638993]
[1752370091444,0.40379398,117240.0,117230.0,0.25438993]
[1752370091649,0.40379398,117240.0,117230.0,0.25538993]
[1752370091986,0.40379398,117240.0,117230.0,0.25338993]
[1752370092492,0.40379398,117240.0,117230.0,0.25438993]
[1752370095023,0.03761,117240.0,117230.0,0.25438993]
[1752370095181,0.40379398,117240.0,117230.0,0.25438993]
[1752370098141,0.40379398,117240.0,117230.0,0.18954993]
[1752370098341,0.40379398,117240.0,117230.0,0.25438993]
[1752370102054,0.03761,117240.0,117230.0,0.25438993]
[1752370102326,0.40379398,117240.0,117230.0,0.25438993]
[1752370102526,0.22070199,117240.0,117230.0,0.25438993]
[1752370103085,0.03761,117240.0,117230.0,0.25438993]
[1752370103292,0.22070199,117240.0,117230.0,0.25438993]
[1752370106142,0.40379398,117240.0,117230.0,0.25438993]
[1752370106976,0.22070199,117240.0,117230.0,0.25438993]
[1752370113813,0.03761,117240.0,117230.0,0.25438993]
[1752370114159,0.40379398,117240.0,117230.0,0.25438993]
[1752370125441,0.03761,117240.0,117230.0,0.25438993]
[1752370125668,0.40379398,117240.0,117230.0,0.25438993]
[1752370128572,0.03761,117240.0,117230.0,0.25438993]
[1752370128809,0.22070199,117240.0,117230.0,0.25438993]
[1752370139986,0.03761,117240.0,117230.0,0.25438993]
[1752370140209,0.22070199,117240.0,117230.0,0.25438993]
[1752370142259,0.03761,117240.0,117230.0,0.25438993]
[1752370142469,0.20251199,117240.0,117230.0,0.25438993]
[1752370142682,0.0159,117250.0,117230.0,0.45378192]
[1752370143086,0.20195199,117250.0,117230.0,0.45378192]
[1752370143580,0.20195199,117250.0,117230.0,0.45278192]
[1752370143789,0.20195199,117250.0,117230.0,0.45178192]
[1752370144033,0.01886,117250.0,117230.0,0.45278192]
[1752370144234,0.03446,117250.0,117230.0,0.25438993]
[1752370144444,0.03446,117250.0,117230.0,0.26893078]
[1752370144445,0.18309199,117240.0,117230.0,0.26893078]
[1752370144656,0.21755199,117250.0,117230.0,0.26893078]
[1752370145433,0.21755199,117250.0,117230.0,0.26793078]
[1752370148119,0.21755199,117250.0,117230.0,0.26893078]
[1752370149447,0.21755199,117250.0,117230.0,0.26793078]
[1752370149598,0.21755199,117250.0,117230.0,0.26893078]
[1752370150730,0.0159,117240.0,117230.0,0.26893078]
[1752370152142,0.0159,117240.0,117230.0,0.26793078]
[1752370152341,0.0159,117240.0,117230.0,0.20309078]
[1752370152543,0.40360398,117240.0,117230.0,0.20409078]
[1752370152763,0.40360398,117240.0,117230.0,0.26897078]
[1752370153562,0.22051199,117240.0,117230.0,0.26897078]
[1752370154956,0.22051199,117240.0,117230.0,0.26797078]
[1752370155784,0.03742,117240.0,117230.0,0.26797078]
[1752370155983,0.22051199,117240.0,117230.0,0.26797078]
[1752370156696,0.22051199,117240.0,117230.0,0.26897078]
[1752370164846,0.03742,117240.0,117230.0,0.26897078]
[1752370165025,0.22051199,117240.0,117230.0,0.26897078]
[1752370180744,0.03742,117240.0,117230.0,0.26897078]
[1752370180946,0.22051199,117240.0,117230.0,0.26897078]
[1752370182099,0.03742,117240.0,117230.0,0.26897078]
[1752370182302,0.03742,117240.0,117230.0,0.45206277]
[1752370183294,0.03742,117240.0,117230.0,0.26897078]
[1752370183469,0.03742,117240.0,117230.0,0.45206277]
[1752370185377,0.03545,117240.0,117230.0,0.45206277]
[1752370186417,0.03545,117240.0,117230.0,0.26897078]
[1752370188648,0.03758,117240.0,117230.0,0.26897078]
[1752370200302,0.03543,117250.0,117230.0,0.26897078]
[1752370200513,0.03543,117250.0,117240.0,0.18309199]
[1752370200514,0.0165,117250.0,117240.0,0.18309199]
[1752370200722,0.0165,117250.0,117240.0,0.26852192]
[1752370201097,0.0324,117250.0,117240.0,0.26852192]
[1752370201540,0.03543,117250.0,117240.0,0.26852192]
[1752370202399,0.03543,117250.0,117240.0,0.08542993]
[1752370202601,0.03756,117250.0,117240.0,0.08542993]
[1752370204419,0.03756,117250.0,117240.0,0.08642993]
[1752370205630,0.03756,117250.0,117240.0,0.08742993]
[1752370206416,0.22065199,117250.0,117240.0,0.08742993]
[1752370212758,0.03756,117250.0,117240.0,0.08742993]
[1752370212960,0.22065199,117250.0,117240.0,0.08742993]
[1752370213306,0.03756,117250.0,117240.0,0.08742993]
[1752370213500,0.22065199,117250.0,117240.0,0.08742993]
[1752370213709,0.02166,117250.0,117240.0,0.27052192]
[1752370213912,0.20475199,117250.0,117240.0,0.08742993]
[1752370214115,0.22095199,117250.0,117240.0,0.08742993]
[1752370214313,0.03786,117250.0,117240.0,0.27052192]
[1752370215245,0.03786,117250.0,117240.0,0.08742993]
[1752370225918,0.22095199,117250.0,117240.0,0.08742993]
[1752370226121,0.03786,117250.0,117240.0,0.08742993]
[1752370226324,0.22095199,117250.0,117240.0,0.08742993]
[1752370234441,0.22095199,117250.0,117240.0,0.18958993]
[1752370246106,0.03786,117250.0,117240.0,0.18958993]
[1752370246355,0.22095199,117250.0,117240.0,0.18958993]
[1752370250668,0.40404398,117250.0,117240.0,0.18958993]
[1752370250882,0.22095199,117250.0,117240.0,0.18958993]
[1752370251091,0.03786,117250.0,117240.0,0.20413078]
[1752370251450,0.0165,117250.0,117240.0,0.59636803]
[1752370251593,0.03425,117260.0,117240.0,0.41327604]
[1752370251799,0.21734199,117260.0,117250.0,0.21498993]
[1752370251989,0.0362,117260.0,117250.0,0.21498993]
[1752370253180,0.21929199,117260.0,117250.0,0.21498993]
[1752370254982,0.0362,117260.0,117250.0,0.21498993]
[1752370255161,0.21929199,117260.0,117250.0,0.21498993]
[1752370259125,0.21929199,117260.0,117250.0,0.31714993]
[1752370260304,0.0362,117260.0,117250.0,0.31714993]
[1752370260499,0.21929199,117260.0,117250.0,0.31714993]
[1752370270351,0.40238398,117260.0,117250.0,0.31714993]
[1752370271042,0.44369445,117260.0,117250.0,0.31714993]
[1752370271259,0.0362,117260.0,117250.0,0.31714993]
[1752370271497,0.58814098,117260.0,117250.0,0.31714993]
[1752370271708,0.40238398,117260.0,117250.0,0.23172]
[1752370271917,0.58547597,117260.0,117250.0,0.23172]
[1752370272338,0.92547597,117260.0,117250.0,0.16744]
[1752370272539,1.0109059,117260.0,117250.0,0.16744]
[1752370272743,1.0364719,117260.0,117250.0,0.16744]
[1752370278993,0.95104197,117260.0,117250.0,0.16744]
[1752370279199,1.50031794,117260.0,117250.0,0.16744]
[1752370279400,1.58574787,117260.0,117250.0,0.16744]
[1752370279605,1.0364719,117260.0,117250.0,0.16744]
[1752370280218,1.06292865,117260.0,117250.0,0.16744]
[1752370280625,0.51265268,117260.0,117250.0,0.16744]
[1752370280803,1.06192865,117260.0,117250.0,0.16744]
[1752370281007,1.06392865,117260.0,117250.0,0.16744]
[1752370281379,1.06192865,117260.0,117250.0,0.16744]
[1752370281783,1.06492865,117260.0,117250.0,0.16744]
[1752370281985,1.06692865,117260.0,117250.0,0.16744]
[1752370283328,1.08904575,117260.0,117250.0,0.16744]
[1752370296399,0.53976978,117260.0,117250.0,0.16744]
[1752370296612,0.51765268,117260.0,117250.0,0.16744]
[1752370296821,1.06692865,117260.0,117250.0,0.16744]
[1752370298568,0.77294998,117260.0,117250.0,0.16744]
[1752370305807,0.95604197,117260.0,117250.0,0.16744]
[1752370307122,0.77294998,117260.0,117250.0,0.16744]
[1752370310195,0.77294998,117260.0,117250.0,0.10216]
[1752370310430,0.77294998,117260.0,117250.0,0.16796]
[1752370318616,0.77294998,117260.0,117250.0,0.10216]
[1752370318770,0.77294998,117260.0,117250.0,0.16784]
[1752370319464,0.95604197,117260.0,117250.0,0.16784]
[1752370319819,0.77294998,117260.0,117250.0,0.16784]
[1752370320333,0.406766,117260.0,117250.0,0.16784]
[1752370320549,0.389016,117260.0,117250.0,0.10216]
[1752370320736,0.18809199,117260.0,117250.0,0.1841]
[1752370320936,0.18809199,117260.0,117250.0,0.1964]
[1752370321236,0.005,117260.0,117250.0,0.1964]
[1752370321431,0.005,117260.0,117250.0,0.46492192]
[1752370322093,0.1938127,117270.0,117260.0,0.0286]
[1752370323266,0.1948127,117270.0,117260.0,0.0286]
[1752370324297,0.18609199,117270.0,117260.0,0.0286]
[1752370324874,0.18509199,117270.0,117260.0,0.0286]
[1752370325388,0.18509199,117270.0,117260.0,0.0163]
[1752370325780,0.18509199,117270.0,117250.0,0.28152993]
[1752370326219,0.19362078,117270.0,117250.0,0.28152993]
[1752370327273,0.19362078,117270.0,117250.0,0.28252993]
[1752370327746,0.19362078,117270.0,117250.0,0.28352993]
[1752370334397,0.20922078,117270.0,117250.0,0.28352993]
[1752370334640,0.00266501,117260.0,117250.0,0.28352993]
[1752370335334,0.185757,117260.0,117250.0,0.28352993]
[1752370335547,0.18309199,117260.0,117250.0,0.28152993]
[1752370335971,0.18309199,117260.0,117250.0,0.28252993]
[1752370336312,0.18309199,117260.0,117250.0,0.28352993]
[1752370339638,0.18309199,117260.0,117250.0,0.27122993]
[1752370340442,0.18309199,117260.0,117250.0,0.25522993]
[1752370342792,0.22831078,117270.0,117250.0,0.25522993]
[1752370343046,0.22831078,117270.0,117250.0,0.45472192]
[1752370343504,0.21241078,117270.0,117250.0,0.28392993]
[1752370343722,0.21241078,117270.0,117250.0,0.28292993]
[1752370344584,0.21241078,117270.0,117250.0,0.28192993]
[1752370344791,0.21241078,117270.0,117250.0,0.28292993]
[1752370345655,0.21241078,117270.0,117250.0,0.28392993]
[1752370346166,0.21241078,117270.0,117250.0,0.27162993]
[1752370346509,0.22831078,117270.0,117250.0,0.27162993]
[1752370348219,0.04521879,117270.0,117250.0,0.27162993]
[1752370348397,0.22831078,117270.0,117250.0,0.27162993]
[1752370352051,0.22831078,117270.0,117250.0,0.25522993]
[1752370356639,0.185757,117260.0,117250.0,0.25522993]
[1752370356846,0.18309199,117260.0,117250.0,0.25522993]
[1752370357581,0.18309199,117260.0,117250.0,0.25422993]
[1752370357769,0.19839199,117260.0,117250.0,0.25522993]
[1752370357976,0.19839199,117260.0,117250.0,0.25422993]
[1752370358284,0.19839199,117260.0,117250.0,0.25522993]
[1752370359899,0.20144199,117260.0,117250.0,0.25522993]
[1752370368634,0.21724199,117260.0,117250.0,0.25522993]
[1752370369384,0.03415,117260.0,117250.0,0.25522993]
[1752370369589,0.21724199,117260.0,117250.0,0.25522993]
[1752370371401,0.03415,117260.0,117250.0,0.25522993]
[1752370371703,0.21724199,117260.0,117250.0,0.25522993]
[1752370381322,0.21932199,117260.0,117250.0,0.25522993]
[1752370382365,0.21932199,117260.0,117250.0,0.25458993]
[1752370398833,0.03623,117260.0,117250.0,0.25458993]